[Event "Late-Titled-Tuesday-Blitz-April-16-2024"]
[Site "Chess.com"]
[Date "2024.04.16"]
[Round "7"]
[White "XDPS"]
[Black "MeisterJabo"]
[Result "1-0"]
[WhiteElo "2830"]
[BlackElo "2527"]
[TimeControl "180+1"]
[EndTime "15:13:54 PDT"]
[Termination "XDPS won on time"]

1. e4 {[%clk 0:03:00.9]} 1... e5 {[%clk 0:02:59.7]} 2. Nf3 {[%clk 0:03:01.2]}
2... Nf6 {[%clk 0:02:59.8]} 3. Nc3 {[%clk 0:02:58.5]} 3... Nc6 {[%clk
0:02:59.9]} 4. Bb5 {[%clk 0:02:54]} 4... Nd4 {[%clk 0:02:59.9]} 5. Bc4 {[%clk
0:02:53.4]} 5... Bc5 {[%clk 0:02:58.9]} 6. O-O {[%clk 0:02:53.4]} 6... d6 {[%clk
0:02:57.2]} 7. Nxd4 {[%clk 0:02:50.4]} 7... Bxd4 {[%clk 0:02:54.5]} 8. d3 {[%clk
0:02:50.7]} 8... O-O {[%clk 0:02:52.4]} 9. Bg5 {[%clk 0:02:50.4]} 9... h6 {[%clk
0:02:50.3]} 10. Bh4 {[%clk 0:02:50.5]} 10... c6 {[%clk 0:02:49.9]} 11. Bb3
{[%clk 0:02:45.5]} 11... Be6 {[%clk 0:02:46.6]} 12. Kh1 {[%clk 0:02:45.3]} 12...
g5 {[%clk 0:02:25.1]} 13. Bg3 {[%clk 0:02:45]} 13... Kg7 {[%clk 0:02:05]} 14.
Qd2 {[%clk 0:02:44.1]} 14... Nh5 {[%clk 0:01:50.7]} 15. Nd1 {[%clk 0:02:44.1]}
15... Bxb3 {[%clk 0:01:41]} 16. axb3 {[%clk 0:02:44]} 16... f5 {[%clk
0:01:41.3]} 17. exf5 {[%clk 0:02:39.8]} 17... Rxf5 {[%clk 0:01:42.2]} 18. Ne3
{[%clk 0:02:33.6]} 18... Bxe3 {[%clk 0:01:38.8]} 19. fxe3 {[%clk 0:02:21.3]}
19... Nxg3+ {[%clk 0:01:34.6]} 20. hxg3 {[%clk 0:02:22.2]} 20... Qd7 {[%clk
0:01:21.1]} 21. e4 {[%clk 0:02:15.3]} 21... Rxf1+ {[%clk 0:01:16.3]} 22. Rxf1
{[%clk 0:02:16.2]} 22... Rf8 {[%clk 0:01:16.5]} 23. Rxf8 {[%clk 0:02:16.3]}
23... Kxf8 {[%clk 0:01:17.4]} 24. Qf2+ {[%clk 0:02:16.5]} 24... Kg7 {[%clk
0:01:00.5]} 25. Qxa7 {[%clk 0:02:17.4]} 25... h5 {[%clk 0:01:00.2]} 26. Kg1
{[%clk 0:02:11.8]} 26... Kg6 {[%clk 0:00:53.1]} 27. Qb8 {[%clk 0:02:10.5]} 27...
Kg7 {[%clk 0:00:52.1]} 28. b4 {[%clk 0:02:10.3]} 28... h4 {[%clk 0:00:47]} 29.
gxh4 {[%clk 0:02:10.1]} 29... gxh4 {[%clk 0:00:47.9]} 30. Kh2 {[%clk 0:02:02.6]}
30... Qe7 {[%clk 0:00:34.8]} 31. Qc8 {[%clk 0:01:58.5]} 31... Qf6 {[%clk
0:00:18.5]} 32. Qg4+ {[%clk 0:01:55.5]} 32... Kf8 {[%clk 0:00:17.6]} 33. Kh3
{[%clk 0:01:39.6]} 33... Qh6 {[%clk 0:00:03.1]} 34. Qxh4 {[%clk 0:01:26.9]}
34... Qe3+ {[%clk 0:00:03.4]} 35. Qg3 {[%clk 0:01:27.1]} 35... Qh6+ {[%clk
0:00:03.4]} 36. Kg4 {[%clk 0:01:20.3]} 36... Qd2 {[%clk 0:00:03.8]} 37. Kf5
{[%clk 0:01:02]} 37... Qxc2 {[%clk 0:00:01.4]} 38. Kf6 {[%clk 0:01:01.7]} 1-0

[Event "Late-Titled-Tuesday-Blitz-April-16-2024"]
[Site "Chess.com"]
[Date "2024.04.16"]
[Round "7"]
[White "akanga001"]
[Black "picturesquecheck"]
[Result "0-1"]
[WhiteElo "2131"]
[BlackElo "2406"]
[TimeControl "180+1"]
[EndTime "15:13:54 PDT"]
[Termination "picturesquecheck won by resignation"]

1. d4 {[%clk 0:03:00.9]} 1... d6 {[%clk 0:02:59.2]} 2. Nf3 {[%clk 0:02:58.6]}
2... g6 {[%clk 0:02:59.5]} 3. c3 {[%clk 0:02:57.6]} 3... Bg7 {[%clk 0:02:59.9]}
4. Bg5 {[%clk 0:02:56]} 4... Nd7 {[%clk 0:02:59.9]} 5. Nbd2 {[%clk 0:02:55.8]}
5... h6 {[%clk 0:02:59.3]} 6. Bh4 {[%clk 0:02:54.5]} 6... Ngf6 {[%clk
0:02:58.5]} 7. e3 {[%clk 0:02:52.9]} 7... O-O {[%clk 0:02:57.4]} 8. a4 {[%clk
0:02:51.6]} 8... c5 {[%clk 0:02:57]} 9. Be2 {[%clk 0:02:50.8]} 9... b6 {[%clk
0:02:55.5]} 10. O-O {[%clk 0:02:49.1]} 10... Bb7 {[%clk 0:02:55.7]} 11. Qc2
{[%clk 0:02:43.9]} 11... Rc8 {[%clk 0:02:54.9]} 12. Rfc1 {[%clk 0:02:33.7]}
12... Nd5 {[%clk 0:02:49.7]} 13. Qd1 {[%clk 0:02:21.8]} 13... N7f6 {[%clk
0:02:42.3]} 14. Qf1 {[%clk 0:02:19.9]} 14... cxd4 {[%clk 0:02:39]} 15. exd4
{[%clk 0:02:15.7]} 15... Qd7 {[%clk 0:02:29.2]} 16. Ba6 {[%clk 0:02:13.6]} 16...
Rfe8 {[%clk 0:02:26.6]} 17. Bxb7 {[%clk 0:02:12.7]} 17... Qxb7 {[%clk
0:02:27.5]} 18. Bg3 {[%clk 0:02:07.1]} 18... Nh5 {[%clk 0:02:25.6]} 19. Qb5
{[%clk 0:01:47.4]} 19... a6 {[%clk 0:02:20.8]} 20. Qf1 {[%clk 0:01:40.7]} 20...
b5 {[%clk 0:02:19.4]} 21. axb5 {[%clk 0:01:39.1]} 21... axb5 {[%clk 0:02:20.3]}
22. Nb3 {[%clk 0:01:34]} 22... Ndf4 {[%clk 0:02:13.4]} 23. Bxf4 {[%clk
0:01:31.5]} 23... Nxf4 {[%clk 0:02:11.9]} 24. Nbd2 {[%clk 0:01:23.4]} 24... e5
{[%clk 0:02:03.2]} 25. g3 {[%clk 0:01:22.7]} 25... Ne6 {[%clk 0:01:58.5]} 26.
dxe5 {[%clk 0:01:20.6]} 26... dxe5 {[%clk 0:01:59.4]} 27. Qg2 {[%clk 0:01:15]}
27... e4 {[%clk 0:01:53.6]} 28. Nh4 {[%clk 0:01:09.9]} 28... Ng5 {[%clk
0:01:49.9]} 29. Nf1 {[%clk 0:00:56.3]} 29... b4 {[%clk 0:01:43.9]} 30. Ne3
{[%clk 0:00:54.6]} 30... bxc3 {[%clk 0:01:41.6]} 31. bxc3 {[%clk 0:00:53.4]}
31... Rxc3 {[%clk 0:01:38]} 32. Rxc3 {[%clk 0:00:44.3]} 32... Bxc3 {[%clk
0:01:38.9]} 33. Rd1 {[%clk 0:00:43.1]} 33... Bg7 {[%clk 0:01:33.4]} 34. Qf1
{[%clk 0:00:36.5]} 34... Qc8 {[%clk 0:01:29.6]} 35. g4 {[%clk 0:00:30.5]} 35...
Be5 {[%clk 0:01:16.9]} 36. Nc4 {[%clk 0:00:20.5]} 36... Qxg4+ {[%clk 0:01:11.7]}
37. Kh1 {[%clk 0:00:19.1]} 37... Qxh4 {[%clk 0:01:10.8]} 38. Nxe5 {[%clk
0:00:18.8]} 38... Rxe5 {[%clk 0:01:11.7]} 39. Rd8+ {[%clk 0:00:16.4]} 39... Kh7
{[%clk 0:01:10.1]} 40. Rd2 {[%clk 0:00:14.2]} 40... Nf3 {[%clk 0:01:07.4]} 0-1

[Event "Late-Titled-Tuesday-Blitz-April-16-2024"]
[Site "Chess.com"]
[Date "2024.04.16"]
[Round "7"]
[White "Sanyura"]
[Black "szachmistrz2500"]
[Result "1-0"]
[WhiteElo "2606"]
[BlackElo "2455"]
[TimeControl "180+1"]
[EndTime "15:14:02 PDT"]
[Termination "Sanyura won by resignation"]

1. e4 {[%clk 0:03:00.9]} 1... c5 {[%clk 0:02:57.8]} 2. Nf3 {[%clk 0:03:00.7]}
2... d6 {[%clk 0:02:57.6]} 3. d4 {[%clk 0:03:00.7]} 3... cxd4 {[%clk 0:02:57.9]}
4. Nxd4 {[%clk 0:03:01.6]} 4... Nf6 {[%clk 0:02:58.1]} 5. Nc3 {[%clk 0:03:01.7]}
5... a6 {[%clk 0:02:58.4]} 6. g3 {[%clk 0:03:01.6]} 6... e6 {[%clk 0:02:54.9]}
7. Bg2 {[%clk 0:03:00.8]} 7... Be7 {[%clk 0:02:54.3]} 8. O-O {[%clk 0:03:01.2]}
8... Qc7 {[%clk 0:02:53.4]} 9. h3 {[%clk 0:02:53.2]} 9... Bd7 {[%clk 0:02:50.7]}
10. Qe2 {[%clk 0:02:47.5]} 10... Nc6 {[%clk 0:02:50.5]} 11. Rd1 {[%clk 0:02:48]}
11... Nxd4 {[%clk 0:02:49.1]} 12. Rxd4 {[%clk 0:02:47.8]} 12... Bc6 {[%clk
0:02:47.5]} 13. Bg5 {[%clk 0:02:46.8]} 13... h6 {[%clk 0:02:46.6]} 14. Be3
{[%clk 0:02:45.3]} 14... e5 {[%clk 0:02:42.6]} 15. Rd2 {[%clk 0:02:44.7]} 15...
b5 {[%clk 0:02:41.6]} 16. a3 {[%clk 0:02:44.2]} 16... O-O {[%clk 0:02:40.9]} 17.
Rad1 {[%clk 0:02:43.7]} 17... Rab8 {[%clk 0:02:39.5]} 18. g4 {[%clk 0:02:42.8]}
18... a5 {[%clk 0:02:35.2]} 19. h4 {[%clk 0:01:36.5]} 19... b4 {[%clk
0:02:34.4]} 20. axb4 {[%clk 0:01:36.1]} 20... axb4 {[%clk 0:02:35.3]} 21. Nd5
{[%clk 0:01:36.2]} 21... Nxd5 {[%clk 0:02:10.7]} 22. exd5 {[%clk 0:01:37.1]}
22... Bb5 {[%clk 0:02:11.1]} 23. Qf3 {[%clk 0:01:22.1]} 23... f5 {[%clk
0:02:11.1]} 24. gxf5 {[%clk 0:01:21.2]} 24... Bd7 {[%clk 0:02:08.7]} 25. Bh3
{[%clk 0:01:10.7]} 25... Qd8 {[%clk 0:02:02.9]} 26. Qg2 {[%clk 0:01:05]} 26...
Kh8 {[%clk 0:01:58.4]} 27. Qg6 {[%clk 0:00:50.3]} 27... Rf6 {[%clk 0:01:57]} 28.
Qh5 {[%clk 0:00:49.1]} 28... Qf8 {[%clk 0:01:50.7]} 29. Kh2 {[%clk 0:00:44.2]}
29... Bxf5 {[%clk 0:01:50]} 30. Rg1 {[%clk 0:00:44.3]} 30... Bxh3 {[%clk
0:01:42.8]} 31. Kxh3 {[%clk 0:00:45.2]} 31... Rf3+ {[%clk 0:01:34.7]} 32. Kh2
{[%clk 0:00:45.2]} 32... Qf6 {[%clk 0:01:33.8]} 33. Rg6 {[%clk 0:00:31.7]} 33...
Qxh4+ {[%clk 0:01:26.9]} 34. Qxh4 {[%clk 0:00:24.9]} 34... Bxh4 {[%clk
0:01:27.8]} 35. Rxd6 {[%clk 0:00:25.1]} 35... Rbf8 {[%clk 0:01:12.6]} 36. Kg2
{[%clk 0:00:21.9]} 36... Be7 {[%clk 0:01:05.1]} 37. Re6 {[%clk 0:00:20.7]} 37...
Bf6 {[%clk 0:01:02.4]} 38. d6 {[%clk 0:00:20.6]} 38... Rf5 {[%clk 0:01:00.5]}
39. d7 {[%clk 0:00:20.5]} 39... Bd8 {[%clk 0:00:58.6]} 40. Bc5 {[%clk
0:00:18.1]} 40... Rg8 {[%clk 0:00:56.5]} 41. Bxb4 {[%clk 0:00:18.5]} 41... Rf6
{[%clk 0:00:55.8]} 42. Rxe5 {[%clk 0:00:18.3]} 42... Rb6 {[%clk 0:00:53.5]} 43.
Be7 {[%clk 0:00:17.3]} 43... Rxb2 {[%clk 0:00:49.6]} 44. Bxd8 {[%clk 0:00:17.5]}
1-0

[Event "Late-Titled-Tuesday-Blitz-April-16-2024"]
[Site "Chess.com"]
[Date "2024.04.16"]
[Round "7"]
[White "th3d4rkness"]
[Black "Giantgoogachess"]
[Result "0-1"]
[WhiteElo "2132"]
[BlackElo "2293"]
[TimeControl "180+1"]
[EndTime "15:14:02 PDT"]
[Termination "Giantgoogachess won by resignation"]

1. e4 {[%clk 0:03:00.9]} 1... c6 {[%clk 0:02:58.7]} 2. d4 {[%clk 0:02:59.9]}
2... d5 {[%clk 0:02:59.4]} 3. e5 {[%clk 0:02:59.7]} 3... g6 {[%clk 0:02:56.9]}
4. h3 {[%clk 0:02:54.8]} 4... Bg7 {[%clk 0:02:54.5]} 5. f4 {[%clk 0:02:54.4]}
5... h5 {[%clk 0:02:50.7]} 6. Nf3 {[%clk 0:02:53.1]} 6... Nh6 {[%clk 0:02:50.7]}
7. Bd3 {[%clk 0:02:51]} 7... Bf5 {[%clk 0:02:51.2]} 8. O-O {[%clk 0:02:48.3]}
8... e6 {[%clk 0:02:50]} 9. c3 {[%clk 0:02:35.1]} 9... Bxd3 {[%clk 0:02:49.2]}
10. Qxd3 {[%clk 0:02:34.8]} 10... Nf5 {[%clk 0:02:48.7]} 11. b4 {[%clk
0:02:31.3]} 11... Nd7 {[%clk 0:02:45.1]} 12. a4 {[%clk 0:02:30.1]} 12... a6
{[%clk 0:02:44]} 13. a5 {[%clk 0:02:28.2]} 13... h4 {[%clk 0:02:38.5]} 14. Nbd2
{[%clk 0:02:22]} 14... Qc7 {[%clk 0:02:35.5]} 15. Nb3 {[%clk 0:02:21]} 15...
O-O-O {[%clk 0:02:36.1]} 16. Nc5 {[%clk 0:02:18.3]} 16... Nxc5 {[%clk
0:02:34.8]} 17. bxc5 {[%clk 0:02:16.3]} 17... Kb8 {[%clk 0:02:35.7]} 18. Bd2
{[%clk 0:02:14.2]} 18... Ka7 {[%clk 0:02:36.6]} 19. Rfb1 {[%clk 0:02:11.4]}
19... Bh6 {[%clk 0:02:35.1]} 20. Rb6 {[%clk 0:02:09.2]} 20... Rb8 {[%clk
0:02:34.4]} 21. c4 {[%clk 0:02:05.6]} 21... Rhd8 {[%clk 0:02:33.2]} 22. cxd5
{[%clk 0:01:59.7]} 22... Rxd5 {[%clk 0:02:34.1]} 23. Rab1 {[%clk 0:01:50.9]}
23... Bf8 {[%clk 0:02:31.5]} 24. Qc4 {[%clk 0:01:47.3]} 24... Be7 {[%clk
0:02:30.1]} 25. Be1 {[%clk 0:01:43.4]} 25... Qd7 {[%clk 0:02:28.9]} 26. Bf2
{[%clk 0:01:30.9]} 26... Bd8 {[%clk 0:02:28.6]} 27. Kh2 {[%clk 0:01:19]} 27...
Qc7 {[%clk 0:01:55.8]} 28. Qb4 {[%clk 0:01:14.1]} 28... Rd7 {[%clk 0:01:55.4]}
29. Nd2 {[%clk 0:01:11.8]} 29... Ne7 {[%clk 0:01:53.6]} 30. Qb3 {[%clk
0:00:59.1]} 30... Nd5 {[%clk 0:01:53.4]} 31. Nc4 {[%clk 0:00:54.9]} 31... Nxf4
{[%clk 0:01:40.6]} 32. Nd6 {[%clk 0:00:54.4]} 32... Nd5 {[%clk 0:01:37.6]} 33.
Qd3 {[%clk 0:00:36.6]} 33... Be7 {[%clk 0:01:30.4]} 34. Rxb7+ {[%clk 0:00:35.6]}
34... Rxb7 {[%clk 0:01:25.1]} 35. Rxb7+ {[%clk 0:00:34.1]} 35... Qxb7 {[%clk
0:01:25.2]} 36. Nxb7 {[%clk 0:00:31.9]} 36... Rxb7 {[%clk 0:01:26.1]} 37. Qf3
{[%clk 0:00:25.5]} 37... Bg5 {[%clk 0:01:24.5]} 38. Qg4 {[%clk 0:00:20.5]} 38...
Bf4+ {[%clk 0:01:22.3]} 39. Kh1 {[%clk 0:00:20.6]} 39... Rb1+ {[%clk 0:01:20.2]}
40. Bg1 {[%clk 0:00:20]} 40... Be3 {[%clk 0:01:19.4]} 41. Qxh4 {[%clk
0:00:16.8]} 41... Bxg1 {[%clk 0:01:14.5]} 42. Qh7 {[%clk 0:00:15.7]} 42... Bxd4+
{[%clk 0:01:14]} 43. Kh2 {[%clk 0:00:14.9]} 43... Bxe5+ {[%clk 0:01:14.5]} 44.
g3 {[%clk 0:00:15.2]} 44... Rb2+ {[%clk 0:01:15]} 45. Kg1 {[%clk 0:00:15.2]}
45... Bd4+ {[%clk 0:01:14.8]} 46. Kh1 {[%clk 0:00:14.1]} 46... Rb1+ {[%clk
0:01:13.3]} 47. Kg2 {[%clk 0:00:12.8]} 47... Ne3+ {[%clk 0:01:14]} 48. Kf3
{[%clk 0:00:12.6]} 48... Rf1+ {[%clk 0:01:13.8]} 49. Ke4 {[%clk 0:00:12.5]}
49... Bxc5 {[%clk 0:01:14.4]} 50. h4 {[%clk 0:00:10.7]} 50... Nd5 {[%clk
0:01:13.4]} 51. g4 {[%clk 0:00:10.4]} 51... Nf6+ {[%clk 0:01:13.8]} 0-1

[Event "Late-Titled-Tuesday-Blitz-April-16-2024"]
[Site "Chess.com"]
[Date "2024.04.16"]
[Round "7"]
[White "SergioMoralesG"]
[Black "Stanbad1"]
[Result "0-1"]
[WhiteElo "2438"]
[BlackElo "2634"]
[TimeControl "180+1"]
[EndTime "15:14:03 PDT"]
[Termination "Stanbad1 won by resignation"]

1. d4 {[%clk 0:03:00.9]} 1... Nf6 {[%clk 0:03:00]} 2. c4 {[%clk 0:03:01]} 2...
c5 {[%clk 0:03:00.6]} 3. d5 {[%clk 0:03:00.8]} 3... b5 {[%clk 0:03:00.7]} 4.
cxb5 {[%clk 0:03:01.7]} 4... a6 {[%clk 0:03:00.8]} 5. bxa6 {[%clk 0:03:02.6]}
5... g6 {[%clk 0:03:01.1]} 6. Nc3 {[%clk 0:03:02.4]} 6... Bg7 {[%clk 0:03:01.4]}
7. e4 {[%clk 0:03:01.9]} 7... O-O {[%clk 0:03:01.1]} 8. Nf3 {[%clk 0:03:00.8]}
8... Qa5 {[%clk 0:03:01]} 9. Bd2 {[%clk 0:02:57.1]} 9... Bxa6 {[%clk 0:03:00.8]}
10. Bxa6 {[%clk 0:02:56.5]} 10... Qxa6 {[%clk 0:03:01.7]} 11. Qe2 {[%clk
0:02:55.6]} 11... d6 {[%clk 0:02:57.1]} 12. Qxa6 {[%clk 0:02:53.1]} 12... Nxa6
{[%clk 0:02:56.2]} 13. O-O {[%clk 0:02:49.3]} 13... Rfb8 {[%clk 0:02:56.1]} 14.
b3 {[%clk 0:02:40]} 14... Nb4 {[%clk 0:02:55.2]} 15. a4 {[%clk 0:02:37.2]} 15...
Nc2 {[%clk 0:02:52.8]} 16. Rab1 {[%clk 0:02:37.3]} 16... Na3 {[%clk 0:02:52.3]}
17. Rbc1 {[%clk 0:02:16]} 17... Rxb3 {[%clk 0:02:45.1]} 18. e5 {[%clk 0:02:16]}
18... Nd7 {[%clk 0:02:43.6]} 19. exd6 {[%clk 0:02:10.3]} 19... exd6 {[%clk
0:02:43.4]} 20. Ne4 {[%clk 0:02:06.3]} 20... Bf8 {[%clk 0:02:34.4]} 21. a5
{[%clk 0:01:29.4]} 21... f5 {[%clk 0:02:30.1]} 22. Neg5 {[%clk 0:01:23.8]} 22...
Nf6 {[%clk 0:02:29.1]} 23. Rfd1 {[%clk 0:01:05.3]} 23... Nxd5 {[%clk 0:02:23.8]}
24. Ne6 {[%clk 0:00:58.8]} 24... Be7 {[%clk 0:02:22.3]} 25. Bg5 {[%clk
0:00:54.2]} 25... Bxg5 {[%clk 0:02:21]} 26. Nfxg5 {[%clk 0:00:51.3]} 26... Nc3
{[%clk 0:02:21]} 27. Re1 {[%clk 0:00:43.2]} 27... h6 {[%clk 0:02:19.3]} 28. Nh3
{[%clk 0:00:39.6]} 28... Ne4 {[%clk 0:02:19]} 29. f3 {[%clk 0:00:34]} 29... Nf6
{[%clk 0:02:18.7]} 30. Red1 {[%clk 0:00:28.8]} 30... Nb5 {[%clk 0:02:10.3]} 31.
Ra1 {[%clk 0:00:16.6]} 31... Kf7 {[%clk 0:01:59.7]} 32. Nef4 {[%clk 0:00:13.3]}
32... Nd4 {[%clk 0:01:57.4]} 33. Nf2 {[%clk 0:00:11.3]} 33... g5 {[%clk
0:01:47.2]} 34. N4d3 {[%clk 0:00:11.3]} 34... Nd5 {[%clk 0:01:39.7]} 35. Re1
{[%clk 0:00:07.9]} 35... Nb4 {[%clk 0:01:33]} 36. Nxb4 {[%clk 0:00:07.3]} 36...
Rxb4 {[%clk 0:01:33.9]} 37. Nd3 {[%clk 0:00:07]} 37... Rb5 {[%clk 0:01:33.7]}
38. a6 {[%clk 0:00:06.3]} 38... Rb6 {[%clk 0:01:33.6]} 39. a7 {[%clk 0:00:06.2]}
39... Rb7 {[%clk 0:01:33.8]} 40. Ra6 {[%clk 0:00:06.2]} 40... Rd7 {[%clk
0:01:30]} 41. Rb1 {[%clk 0:00:05.7]} 41... Raxa7 {[%clk 0:01:29.3]} 42. Rab6
{[%clk 0:00:05.4]} 42... Rac7 {[%clk 0:01:27.9]} 43. h3 {[%clk 0:00:04.9]} 43...
c4 {[%clk 0:01:28]} 44. Nb4 {[%clk 0:00:04.8]} 44... c3 {[%clk 0:01:27.5]} 45.
Nd5 {[%clk 0:00:04.9]} 45... c2 {[%clk 0:01:26.8]} 46. Re1 {[%clk 0:00:02.7]}
46... c1=Q {[%clk 0:01:26.2]} 47. Rxc1 {[%clk 0:00:03]} 47... Rxc1+ {[%clk
0:01:26.7]} 48. Kf2 {[%clk 0:00:03.9]} 48... Rc2+ {[%clk 0:01:26.5]} 49. Ke3
{[%clk 0:00:03.9]} 49... Ne6 {[%clk 0:01:25.4]} 50. Nb4 {[%clk 0:00:03.2]} 50...
Rxg2 {[%clk 0:01:25]} 0-1

[Event "Late-Titled-Tuesday-Blitz-April-16-2024"]
[Site "Chess.com"]
[Date "2024.04.16"]
[Round "7"]
[White "Lennis93"]
[Black "TigrVShlyape"]
[Result "0-1"]
[WhiteElo "2755"]
[BlackElo "2935"]
[TimeControl "180+1"]
[EndTime "15:14:04 PDT"]
[Termination "TigrVShlyape won on time"]

1. Nf3 {[%clk 0:03:00.9]} 1... Nf6 {[%clk 0:02:59.5]} 2. d4 {[%clk 0:03:00.3]}
2... d5 {[%clk 0:02:55.1]} 3. c4 {[%clk 0:03:00.8]} 3... c6 {[%clk 0:02:55.6]}
4. Qc2 {[%clk 0:02:59.4]} 4... g6 {[%clk 0:02:54.3]} 5. e3 {[%clk 0:02:55.9]}
5... Bg7 {[%clk 0:02:52.4]} 6. Nc3 {[%clk 0:02:55.3]} 6... O-O {[%clk
0:02:51.6]} 7. Be2 {[%clk 0:02:54.2]} 7... Qb6 {[%clk 0:02:49.2]} 8. O-O {[%clk
0:02:53]} 8... Bf5 {[%clk 0:02:48.7]} 9. Qa4 {[%clk 0:02:51.9]} 9... Bg4 {[%clk
0:02:47.5]} 10. h3 {[%clk 0:02:50.7]} 10... Bxf3 {[%clk 0:02:47.4]} 11. Bxf3
{[%clk 0:02:51.6]} 11... e6 {[%clk 0:02:47.8]} 12. Rb1 {[%clk 0:02:47.7]} 12...
Nbd7 {[%clk 0:02:43.9]} 13. b3 {[%clk 0:02:44.4]} 13... Rfd8 {[%clk 0:02:40.2]}
14. Rd1 {[%clk 0:02:44.1]} 14... a5 {[%clk 0:02:39.6]} 15. Ba3 {[%clk
0:02:32.4]} 15... Bf8 {[%clk 0:02:37.6]} 16. Bxf8 {[%clk 0:02:31.1]} 16... Rxf8
{[%clk 0:02:35.8]} 17. Qa3 {[%clk 0:02:15.4]} 17... Rfd8 {[%clk 0:02:33.5]} 18.
Rd2 {[%clk 0:02:06.2]} 18... Qa7 {[%clk 0:02:13.8]} 19. Rbd1 {[%clk 0:02:04.7]}
19... Nb6 {[%clk 0:02:12.6]} 20. Be2 {[%clk 0:01:55.9]} 20... Qb8 {[%clk
0:02:11.6]} 21. f4 {[%clk 0:01:46.9]} 21... Qc7 {[%clk 0:02:09.1]} 22. Rc2
{[%clk 0:01:33.1]} 22... Qb8 {[%clk 0:02:00.3]} 23. Qc5 {[%clk 0:01:31.9]} 23...
Nc8 {[%clk 0:01:57.1]} 24. Bf3 {[%clk 0:01:24]} 24... Nd6 {[%clk 0:01:56.7]} 25.
Na4 {[%clk 0:01:16.3]} 25... b5 {[%clk 0:01:48.9]} 26. Nb2 {[%clk 0:01:02.4]}
26... Nfe4 {[%clk 0:01:24.4]} 27. Qa3 {[%clk 0:00:54]} 27... b4 {[%clk
0:01:24.2]} 28. Qa4 {[%clk 0:00:53.6]} 28... Nc3 {[%clk 0:01:24.3]} 29. Rxc3
{[%clk 0:00:52.9]} 29... bxc3 {[%clk 0:01:24.4]} 30. Nd3 {[%clk 0:00:53.5]}
30... Ra6 {[%clk 0:00:56.1]} 31. Ne5 {[%clk 0:00:31.1]} 31... Qb4 {[%clk
0:00:52]} 32. c5 {[%clk 0:00:23.3]} 32... Nf5 {[%clk 0:00:41.1]} 33. Be2 {[%clk
0:00:07]} 33... c2 {[%clk 0:00:39.3]} 34. Ra1 {[%clk 0:00:02]} 34... Qc3 {[%clk
0:00:38.5]} 0-1

[Event "Late-Titled-Tuesday-Blitz-April-16-2024"]
[Site "Chess.com"]
[Date "2024.04.16"]
[Round "7"]
[White "katharinareinecke"]
[Black "Hakiki_satranc"]
[Result "0-1"]
[WhiteElo "2022"]
[BlackElo "2424"]
[TimeControl "180+1"]
[EndTime "15:14:05 PDT"]
[Termination "Hakiki_satranc won on time"]

1. d4 {[%clk 0:03:00.9]} 1... Nf6 {[%clk 0:02:59.1]} 2. Nf3 {[%clk 0:02:55.6]}
2... b6 {[%clk 0:02:58.1]} 3. g3 {[%clk 0:02:55.3]} 3... Bb7 {[%clk 0:02:54.7]}
4. Bg2 {[%clk 0:02:55.6]} 4... d6 {[%clk 0:02:53.4]} 5. O-O {[%clk 0:02:55.7]}
5... Nbd7 {[%clk 0:02:54]} 6. c4 {[%clk 0:02:53.5]} 6... Ne4 {[%clk 0:02:53.5]}
7. Nc3 {[%clk 0:02:50.6]} 7... Nxc3 {[%clk 0:02:51.1]} 8. bxc3 {[%clk
0:02:51.5]} 8... Be4 {[%clk 0:02:51.1]} 9. a4 {[%clk 0:02:30.9]} 9... a5 {[%clk
0:02:48.2]} 10. Ba3 {[%clk 0:02:30.2]} 10... e6 {[%clk 0:02:47.3]} 11. Nd2
{[%clk 0:02:02.8]} 11... Bxg2 {[%clk 0:02:45.9]} 12. Kxg2 {[%clk 0:01:53.5]}
12... Be7 {[%clk 0:02:43.2]} 13. f3 {[%clk 0:01:44.8]} 13... O-O {[%clk
0:02:40.8]} 14. e4 {[%clk 0:01:36.5]} 14... f5 {[%clk 0:02:26.8]} 15. h3 {[%clk
0:01:31.5]} 15... c5 {[%clk 0:02:19.9]} 16. d5 {[%clk 0:01:25.9]} 16... e5
{[%clk 0:02:16.2]} 17. Ra2 {[%clk 0:01:18.5]} 17... Bg5 {[%clk 0:02:11.5]} 18.
Bc1 {[%clk 0:01:17.2]} 18... Bxd2 {[%clk 0:02:09.8]} 19. Bxd2 {[%clk 0:01:11.8]}
19... fxe4 {[%clk 0:02:09.8]} 20. fxe4 {[%clk 0:01:11.2]} 20... Rxf1 {[%clk
0:02:10.7]} 21. Qxf1 {[%clk 0:01:08.4]} 21... Qe7 {[%clk 0:02:11.3]} 22. h4
{[%clk 0:01:06]} 22... Rf8 {[%clk 0:02:11.2]} 23. Bg5 {[%clk 0:01:05.1]} 23...
Qe8 {[%clk 0:02:03.3]} 24. Rf2 {[%clk 0:00:59.1]} 24... h6 {[%clk 0:02:04.2]}
25. Rxf8+ {[%clk 0:00:56.6]} 25... Nxf8 {[%clk 0:01:59.1]} 26. Be3 {[%clk
0:00:47.1]} 26... Qxa4 {[%clk 0:01:55.2]} 27. Qf5 {[%clk 0:00:39.1]} 27... Qd7
{[%clk 0:01:44.7]} 28. Qh5 {[%clk 0:00:29.2]} 28... b5 {[%clk 0:01:34.3]} 29.
cxb5 {[%clk 0:00:24.7]} 29... Qxb5 {[%clk 0:01:35.2]} 30. Bxh6 {[%clk
0:00:18.4]} 30... gxh6 {[%clk 0:01:25.3]} 31. Qxh6 {[%clk 0:00:18.7]} 31... Qe2+
{[%clk 0:01:25.3]} 32. Kh3 {[%clk 0:00:17.6]} 32... Qxe4 {[%clk 0:01:24]} 33.
Qxd6 {[%clk 0:00:17.4]} 33... Qf5+ {[%clk 0:01:15.8]} 34. Kg2 {[%clk 0:00:16.5]}
34... e4 {[%clk 0:01:13.5]} 35. Qxc5 {[%clk 0:00:15.2]} 35... Qf3+ {[%clk
0:01:10.5]} 36. Kh2 {[%clk 0:00:14.8]} 36... e3 {[%clk 0:01:08.5]} 37. d6 {[%clk
0:00:03.2]} 37... e2 {[%clk 0:01:07.5]} 38. Qg5+ {[%clk 0:00:02.9]} 38... Kh8
{[%clk 0:00:56.7]} 39. Qh6+ {[%clk 0:00:02.5]} 39... Nh7 {[%clk 0:00:53.3]} 0-1